bitfinex-derivatives/quotes_BTCF0:USTF0_20250805
["timestamp","ask_amount","ask_price","bid_price","bid_amount"]
[1754372170669,0.1747658,114450.0,114440.0,1.63055978]
[1754372171669,0.1747658,114450.0,114440.0,1.03367978]
[1754372171869,0.1747658,114450.0,114440.0,1.63071978]
[1754372172770,0.1747658,114450.0,114440.0,2.10713816]
[1754372172972,0.1747658,114450.0,114440.0,1.1543014]
[1754372173270,0.1747658,114450.0,114440.0,1.63071978]
[1754372175868,0.1747658,114450.0,114440.0,2.2644078]
[1754372176076,0.4803705,114460.0,114450.0,0.292116]
[1754372176269,0.209,114460.0,114450.0,1.95295541]
[1754372176773,0.209,114460.0,114450.0,2.0002224]
[1754372177269,0.21,114460.0,114450.0,2.0002224]
[1754372177573,0.15,114460.0,114450.0,2.0002224]
[1754372177975,0.001,114460.0,114450.0,2.0002224]
[1754372178278,0.15,114460.0,114450.0,2.0002224]
[1754372178572,0.15,114460.0,114450.0,2.0012224]
[1754372179372,0.149,114460.0,114450.0,2.0022224]
[1754372179968,0.149,114460.0,114450.0,1.84395276]
[1754372180168,0.149,114460.0,114450.0,1.84495276]
[1754372180875,0.149,114460.0,114450.0,2.04911095]
[1754372182173,0.149,114460.0,114450.0,2.31391095]
[1754372183274,0.149,114460.0,114450.0,2.10975276]
[1754372184166,0.20467,114460.0,114450.0,1.156916]
[1754372184372,0.20467,114460.0,114450.0,2.10975276]
[1754372184573,0.17222,114460.0,114450.0,2.10975276]
[1754372184773,0.15823,114460.0,114450.0,2.10975276]
[1754372188678,0.3329807,114460.0,114450.0,2.10975276]
[1754372189075,0.15823,114460.0,114450.0,2.10975276]
[1754372190072,0.149,114460.0,114450.0,2.10975276]
[1754372191778,0.3237508,114460.0,114450.0,2.10975276]
[1754372192079,0.3329808,114460.0,114450.0,2.26642443]
[1754372192278,0.3794108,114460.0,114450.0,2.26642443]
[1754372193479,0.20466,114460.0,114450.0,1.66842443]
[1754372193677,0.3564611,114500.0,114490.0,0.2118348]
[1754372193882,0.423606,114500.0,114490.0,1.35914318]
[1754372194082,0.400136,114500.0,114490.0,1.35914318]
[1754372194279,0.400136,114500.0,114490.0,1.46877579]
[1754372194478,0.87655438,114500.0,114490.0,1.29407099]
[1754372194679,0.423606,114500.0,114490.0,0.82764261]
[1754372195581,0.423606,114500.0,114490.0,0.83619448]
[1754372196380,0.423606,114500.0,114490.0,1.01089918]
[1754372196781,0.423606,114500.0,114490.0,1.08054919]
[1754372196982,0.423606,114500.0,114490.0,0.90584449]
[1754372197585,0.424606,114500.0,114490.0,0.90584449]
[1754372197885,0.426606,114500.0,114490.0,0.90584449]
[1754372198185,0.426606,114500.0,114490.0,0.79621188]
[1754372198980,0.426606,114500.0,114490.0,0.90584449]
[1754372201384,0.426606,114500.0,114490.0,0.79621188]
[1754372204293,0.426606,114500.0,114490.0,0.90584449]
[1754372205091,0.426606,114500.0,114490.0,1.08054959]
[1754372205390,0.403136,114500.0,114490.0,1.08054959]
[1754372208196,0.356706,114500.0,114490.0,1.08054959]
[1754372208392,0.318476,114500.0,114490.0,1.50374568]
[1754372208593,0.318476,114500.0,114490.0,1.08054959]
[1754372208792,0.318476,114500.0,114490.0,0.97091698]
[1754372212599,0.332096,114500.0,114490.0,0.97091698]
[1754372212798,0.403136,114500.0,114490.0,0.97091698]
[1754372213492,0.308726,114500.0,114490.0,1.39411307]
[1754372213692,0.308726,114500.0,114490.0,0.97091698]
[1754372214898,0.308726,114500.0,114490.0,1.44699579]
[1754372215201,0.84098481,114500.0,114490.0,1.44699579]
[1754372216498,0.87921481,114500.0,114490.0,1.44699579]
[1754372217702,0.87921481,114500.0,114490.0,0.79621188]
[1754372218001,0.90268481,114500.0,114490.0,1.27229069]
[1754372218394,0.90268481,114500.0,114490.0,0.90560449]
[1754372218395,0.87921481,114500.0,114490.0,0.90560449]
[1754372218596,0.90268481,114500.0,114490.0,0.90560449]
[1754372222203,0.90268481,114500.0,114490.0,0.90556449]
[1754372223504,0.90268481,114500.0,114490.0,0.79593188]
[1754372225004,0.426606,114500.0,114490.0,0.79593188]
[1754372225204,0.90268481,114500.0,114490.0,0.79593188]
[1754372225905,0.90268481,114500.0,114490.0,1.27201069]
[1754372227895,0.90268481,114500.0,114490.0,0.79593188]
[1754372228206,0.90268481,114500.0,114490.0,1.27201069]
[1754372228406,0.90368481,114500.0,114490.0,0.79593188]
[1754372228606,0.90368481,114500.0,114490.0,1.27201069]
[1754372229006,0.90368481,114500.0,114490.0,0.79593188]
[1754372232912,0.90368481,114500.0,114490.0,0.67911001]
[1754372235009,0.90368481,114500.0,114490.0,0.70314001]
[1754372235313,0.427606,114500.0,114490.0,0.70314001]
[1754372235513,0.90368481,114500.0,114490.0,0.70314001]
[1754372238614,0.90368481,114500.0,114490.0,0.81303264]
[1754372239015,0.90368481,114500.0,114490.0,0.82756264]
[1754372239314,0.90368481,114500.0,114490.0,0.63537001]
[1754372240415,0.90368481,114500.0,114490.0,0.66992001]
[1754372243116,0.2214651,114490.0,114480.0,0.06445643]
[1754372243323,1.17362272,114490.0,114480.0,0.59684]
[1754372243520,0.2214803,114480.0,114470.0,0.68763395]
[1754372243720,1.24400792,114480.0,114470.0,0.72619395]
[1754372244316,1.24400792,114480.0,114470.0,0.79708551]
[1754372244721,1.49350792,114480.0,114470.0,0.79708551]
[1754372245323,1.49350792,114480.0,114470.0,0.79808551]
[1754372246014,1.49350792,114480.0,114470.0,0.77591156]
[1754372246623,0.96484252,114480.0,114470.0,0.77591156]
[1754372246924,0.96484252,114480.0,114470.0,0.77391156]
[1754372247518,0.7160623,114480.0,114470.0,0.66773156]
[1754372247720,1.38833474,114480.0,114470.0,0.66773156]
[1754372248620,1.38833474,114480.0,114470.0,0.70228156]
[1754372248816,0.96484252,114480.0,114470.0,0.70228156]
[1754372249418,0.5413503,114480.0,114470.0,0.77391156]
[1754372249723,0.96584252,114480.0,114470.0,0.78844156]
[1754372250024,0.96784252,114480.0,114470.0,0.78844156]
[1754372260724,0.5443503,114480.0,114470.0,0.78844156]
[1754372260930,0.96784252,114480.0,114470.0,0.78844156]
[1754372262336,0.96784252,114480.0,114470.0,0.7896321]
[1754372266632,1.49721194,114480.0,114470.0,0.7896321]
[1754372269630,1.49721194,114480.0,114470.0,0.89926097]
[1754372271741,1.49721194,114480.0,114470.0,0.89976176]
[1754372276536,1.49721194,114480.0,114470.0,0.87573176]
[1754372276743,1.49721194,114480.0,114470.0,0.86120176]
[1754372277141,1.49721194,114480.0,114470.0,0.88426176]
[1754372277440,1.49721194,114480.0,114470.0,0.89828176]
[1754372277742,1.49721194,114480.0,114470.0,0.88426176]
[1754372278838,1.49721194,114480.0,114470.0,0.89828176]
[1754372281044,1.49721194,114480.0,114470.0,0.80136176]
[1754372281240,0.1747507,114460.0,114450.0,0.21709601]
[1754372281443,1.24566234,114460.0,114450.0,0.86861167]
[1754372282143,0.76923152,114460.0,114450.0,0.71194]
[1754372282343,0.76923152,114460.0,114450.0,0.71294]
[1754372283143,1.01873152,114460.0,114450.0,0.71294]
[1754372283346,1.01873152,114460.0,114450.0,0.71494]
[1754372283543,1.01873152,114460.0,114450.0,0.78448726]
[1754372283744,1.01873152,114460.0,114450.0,0.78248726]
[1754372283944,1.01873152,114460.0,114450.0,0.78348726]
[1754372284147,1.01873152,114460.0,114450.0,0.78248726]
[1754372285548,1.01873152,114460.0,114450.0,0.78214726]
[1754372286347,1.49516234,114460.0,114450.0,0.78214726]
[1754372286746,1.01873152,114460.0,114450.0,0.78214726]
[1754372288145,1.01873152,114460.0,114450.0,0.18570726]
[1754372288353,1.49516234,114460.0,114450.0,0.64266596]
[1754372288848,1.99516234,114460.0,114450.0,0.67605596]
[1754372289048,1.99516234,114460.0,114450.0,0.07957596]
[1754372289249,1.99516234,114460.0,114450.0,0.04618596]
[1754372290245,1.99516234,114460.0,114450.0,0.11893596]
[1754372290441,1.99516234,114460.0,114450.0,0.15301596]
[1754372290652,1.99516234,114460.0,114450.0,0.16669596]
[1754372292454,1.0423007,114460.0,114450.0,0.16669596]
[1754372292654,1.51873152,114460.0,114450.0,0.16669596]
[1754372292853,2.11521152,114460.0,114450.0,0.16669596]
[1754372295951,2.59164234,114460.0,114450.0,0.16669596]
[1754372298058,2.11521152,114460.0,114450.0,0.16669596]
[1754372298458,2.59164234,114460.0,114450.0,0.16669596]
[1754372300761,2.11521152,114460.0,114450.0,0.16669596]
[1754372301868,2.59164234,114460.0,114450.0,0.16669596]
[1754372306472,2.59164234,114460.0,114450.0,0.15301596]
[1754372310673,2.59164234,114460.0,114450.0,0.12857596]
[1754372312069,2.59164234,114460.0,114450.0,0.08392596]
[1754372312275,2.59164234,114460.0,114450.0,0.16488596]
[1754372312767,2.59164234,114460.0,114450.0,0.04618596]
[1754372314074,1.6387807,114460.0,114450.0,0.04618596]
[1754372314270,2.59164234,114460.0,114450.0,0.04618596]
[1754372322377,1.6387807,114460.0,114450.0,0.04618596]
[1754372322578,2.59164234,114460.0,114450.0,0.04618596]
[1754372338791,2.59164234,114460.0,114450.0,0.001]
[1754372338996,0.2949513,114440.0,114430.0,0.72382873]
[1754372339196,0.77138212,114440.0,114430.0,0.72382873]
[1754372339995,0.77138212,114440.0,114430.0,0.72482873]
[1754372341497,1.02088212,114440.0,114430.0,0.72482873]
[1754372341696,1.02088212,114440.0,114430.0,0.79448916]
[1754372346497,1.02088212,114440.0,114430.0,0.72286916]
[1754372346800,1.02088212,114440.0,114430.0,0.66722043]
[1754372347602,1.02088212,114440.0,114430.0,0.07066043]
[1754372349700,1.61744212,114440.0,114430.0,0.07066043]
[1754372354406,2.09387294,114440.0,114430.0,0.07066043]
[1754372355509,2.59387294,114440.0,114430.0,0.07066043]
[1754372356207,2.11744212,114440.0,114430.0,0.001]
[1754372356610,2.59387294,114440.0,114430.0,0.001]
[1754372357311,2.60247609,114440.0,114430.0,0.001]
[1754372362414,2.60247609,114440.0,114430.0,0.001]
[1754372366616,2.59387294,114440.0,114430.0,0.001]
[1754372368815,2.59387294,114440.0,114420.0,0.06871073]
[1754372368816,1.7946564,114430.0,114420.0,0.06871073]
[1754372369011,0.1748117,114420.0,114410.0,0.66558]
[1754372369215,1.24753334,114420.0,114410.0,0.71353]
[1754372370118,1.24753334,114420.0,114410.0,0.71653]
[1754372370317,1.24753334,114420.0,114410.0,0.11993]
[1754372370512,1.24753334,114420.0,114410.0,0.18956507]
[1754372370918,1.24753334,114420.0,114410.0,0.19156507]
[1754372372422,1.24753334,114420.0,114410.0,0.20047825]
[1754372375621,1.24753334,114420.0,114410.0,0.19156507]
[1754372381436,1.22323334,114420.0,114410.0,0.19282507]
[1754372384034,1.24516334,114420.0,114410.0,0.19282507]
[1754372384832,1.22323334,114420.0,114410.0,0.19282507]
[1754372390637,1.22323334,114420.0,114410.0,0.17902507]
[1754372390837,1.22323334,114420.0,114410.0,0.15541507]
[1754372391237,1.22323334,114420.0,114410.0,0.18001507]
[1754372391437,1.22323334,114420.0,114410.0,0.17901507]
[1754372392437,1.22323334,114420.0,114410.0,0.17701507]
[1754372393036,1.22323334,114420.0,114410.0,0.15241507]
[1754372393238,1.22323334,114420.0,114410.0,0.07163507]
[1754372394836,0.2703717,114420.0,114410.0,0.07163507]
[1754372395029,1.24516334,114420.0,114410.0,0.07163507]
[1754372395739,1.74516334,114420.0,114410.0,0.07163507]
[1754372396247,2.34272334,114420.0,114410.0,0.07163507]
[1754372396436,2.59222334,114420.0,114410.0,0.07163507]
[1754372396841,2.59422334,114420.0,114410.0,0.07063507]
[1754372397750,2.59422334,114420.0,114410.0,0.06963507]
[1754372397942,0.1748269,114410.0,114400.0,0.8357297]
[1754372398137,0.77027772,114410.0,114400.0,0.8834297]
[1754372399249,0.77027772,114410.0,114400.0,0.95354441]
[1754372399449,0.77127772,114410.0,114400.0,0.79687274]
[1754372400153,0.2938622,114400.0,114390.0,0.15667167]
[1754372400349,1.24672384,114400.0,114390.0,0.23847167]
[1754372400653,0.77029302,114400.0,114390.0,0.27705167]
[1754372400842,1.24672384,114400.0,114390.0,0.27705167]
[1754372401042,1.24672384,114400.0,114390.0,0.03827]
[1754372401341,0.2938776,114390.0,114380.0,0.72670488]
[1754372401647,1.24673924,114390.0,114380.0,0.72670488]
[1754372402946,1.24673924,114390.0,114380.0,0.72770488]
[1754372403254,1.24673924,114390.0,114380.0,0.79707086]
[1754372403453,1.24673924,114390.0,114380.0,0.97194366]
[1754372403753,1.24673924,114390.0,114380.0,0.79807086]
[1754372404158,1.24673924,114390.0,114380.0,0.79803086]
[1754372404546,1.49623924,114390.0,114380.0,0.79803086]
[1754372404743,1.49623924,114390.0,114380.0,0.79791086]
[1754372405656,1.49623924,114390.0,114380.0,0.20063086]
[1754372405856,1.49623924,114390.0,114380.0,0.79791086]
[1754372409556,1.49623924,114390.0,114380.0,0.75933086]
[1754372409752,1.49623924,114390.0,114380.0,0.79704086]
[1754372410657,1.49623924,114390.0,114380.0,0.67753086]
[1754372411558,1.49623924,114390.0,114380.0,0.71098086]
[1754372411959,1.49623924,114390.0,114380.0,0.11370086]
[1754372412160,1.49623924,114390.0,114380.0,0.71110086]
[1754372418160,1.49623924,114390.0,114380.0,0.70221598]
[1754372419264,1.49623924,114390.0,114380.0,0.74798598]
[1754372420060,1.49623924,114390.0,114360.0,0.64008717]
[1754372420061,0.1748883,114370.0,114360.0,0.87145167]
[1754372420264,0.77084912,114370.0,114360.0,0.87145167]
[1754372420462,0.77084912,114370.0,114360.0,0.8896836]
[1754372420463,0.2006983,114370.0,114360.0,0.8896836]
[1754372420662,0.71534912,114370.0,114360.0,0.8896836]
[1754372421164,0.74959912,114370.0,114360.0,0.8896833]
[1754372421463,0.77084912,114370.0,114360.0,0.96119334]
[1754372421665,0.77084912,114370.0,114360.0,0.96419334]
[1754372421666,1.02034912,114370.0,114360.0,0.96419334]
[1754372421959,0.77084912,114370.0,114360.0,0.96419334]
[1754372422157,1.02034912,114370.0,114360.0,0.79329004]
[1754372422354,1.49677994,114370.0,114360.0,0.79129004]
[1754372422855,1.49677994,114370.0,114360.0,0.79982506]
[1754372423266,1.02034912,114370.0,114360.0,0.79682506]
[1754372423660,1.02034912,114370.0,114360.0,0.72566506]
[1754372423868,1.02034912,114370.0,114360.0,0.79682506]
[1754372424868,1.02034912,114370.0,114360.0,0.79674506]
[1754372425665,1.02034912,114370.0,114360.0,0.79574506]
[1754372425866,1.02134912,114370.0,114360.0,0.79574506]
[1754372426567,1.02134912,114370.0,114360.0,0.79474506]
[1754372427168,1.49777994,114370.0,114360.0,0.79474506]
[1754372427558,1.49777994,114370.0,114360.0,0.78122506]
[1754372427760,1.49777994,114370.0,114360.0,0.75703506]
[1754372428064,1.49777994,114370.0,114360.0,0.74850004]
[1754372428367,1.49777994,114370.0,114360.0,0.66867004]
[1754372428563,1.49777994,114370.0,114360.0,0.70212004]
[1754372428765,0.96924358,114370.0,114360.0,0.72370004]
[1754372429066,0.96924358,114370.0,114360.0,0.74789004]
[1754372430571,0.96924358,114370.0,114360.0,0.76368004]
[1754372432270,0.5449183,114370.0,114360.0,0.77269004]
[1754372432470,0.96924358,114370.0,114360.0,0.78742004]
[1754372433869,0.96924358,114370.0,114360.0,0.78710004]
[1754372436274,0.5449183,114370.0,114360.0,0.96200384]
[1754372436576,0.96975358,114370.0,114360.0,0.96200384]
[1754372436763,0.87552358,114370.0,114360.0,0.96200384]
[1754372437267,0.91439358,114370.0,114360.0,0.96200384]
[1754372437471,0.94915358,114370.0,114360.0,0.96200384]
[1754372437872,0.97083358,114370.0,114360.0,0.96200384]
[1754372448780,1.02377241,114370.0,114360.0,0.96200384]
[1754372452380,1.02377241,114370.0,114360.0,1.11867551]
[1754372455880,1.50103652,114370.0,114360.0,1.11867551]
[1754372457688,1.44459652,114370.0,114360.0,1.06364551]
[1754372458190,1.47935652,114370.0,114360.0,0.94427171]
[1754372458776,1.47935652,114370.0,114360.0,0.82502171]
[1754372459285,1.47935652,114370.0,114360.0,0.84734171]
[1754372459481,1.47935652,114370.0,114360.0,0.90436171]
[1754372459682,1.47935652,114370.0,114360.0,0.92033171]
[1754372459884,1.47935652,114370.0,114360.0,0.94444171]
[1754372461381,1.47935652,114370.0,114360.0,0.92971171]
[1754372461582,1.47935652,114370.0,114360.0,0.82502171]
[1754372462284,1.47935652,114370.0,114360.0,0.66835004]
[1754372463091,2.07615652,114370.0,114360.0,0.66835004]
[1754372463493,2.07615652,114370.0,114360.0,0.07151004]
[1754372463686,0.174903,114360.0,114350.0,0.60541921]
[1754372463886,1.25163122,114360.0,114350.0,0.60541921]
[1754372464296,1.25163122,114360.0,114350.0,0.5968]
[1754372464492,1.25163122,114360.0,114350.0,0.69211]
[1754372464892,1.25163122,114360.0,114350.0,0.69311]
[1754372465294,1.25163122,114360.0,114350.0,0.66821]
[1754372465501,1.25163122,114360.0,114350.0,0.71755]
[1754372465789,1.25163122,114360.0,114350.0,0.7876187]
[1754372465994,1.25163122,114360.0,114350.0,0.7886187]
[1754372466495,1.50113122,114360.0,114350.0,0.7886187]
[1754372466695,1.50113122,114360.0,114350.0,0.7739287]
[1754372466995,1.50113122,114360.0,114350.0,0.78965912]
[1754372467593,1.50113122,114360.0,114350.0,0.76475912]
[1754372467890,1.50113122,114360.0,114350.0,0.72172912]
[1754372468095,1.50113122,114360.0,114350.0,0.77990912]
[1754372468292,1.50113122,114360.0,114350.0,0.72172912]
[1754372468492,1.50113122,114360.0,114350.0,0.70615912]
[1754372468892,1.50113122,114360.0,114350.0,0.6904287]
[1754372470097,1.50113122,114360.0,114350.0,0.7237087]
[1754372471097,1.50113122,114360.0,114350.0,0.7641787]
[1754372472398,1.50113122,114360.0,114350.0,0.7886187]
[1754372476799,1.50113122,114360.0,114350.0,0.1918187]
[1754372477000,1.50113122,114360.0,114350.0,0.7886187]
[1754372478804,1.50113122,114360.0,114350.0,0.1918187]
[1754372479199,1.50113122,114360.0,114350.0,0.1771287]
[1754372479802,1.50113122,114360.0,114350.0,0.1424787]
[1754372481200,1.50113122,114360.0,114350.0,0.0720687]
[1754372481704,0.2971342,114340.0,114330.0,0.11975]
[1754372481899,1.25166242,114340.0,114330.0,0.71655]
[1754372482302,1.25166242,114340.0,114330.0,0.11975]
[1754372482603,1.50116242,114340.0,114330.0,0.11975]
[1754372482904,1.50116242,114340.0,114330.0,0.12175]
[1754372483405,1.50116242,114340.0,114330.0,0.10706]
[1754372483601,1.50116242,114340.0,114330.0,0.12175]
[1754372484102,1.50116242,114340.0,114330.0,0.13982549]
[1754372485005,1.50116242,114340.0,114330.0,0.20959699]
[1754372485602,1.48481242,114340.0,114330.0,0.20959699]
[1754372489910,1.48481242,114340.0,114330.0,0.19490699]
[1754372492108,1.50116242,114340.0,114330.0,0.19490699]
[1754372493514,0.5466342,114340.0,114330.0,0.38364649]
[1754372493714,1.02389831,114340.0,114330.0,0.38364649]
[1754372493914,0.5466342,114340.0,114330.0,0.38364649]
[1754372494114,1.02389831,114340.0,114330.0,0.38364649]
[1754372504720,1.50116242,114340.0,114330.0,0.08984699]
[1754372505025,1.50116242,114340.0,114330.0,0.26479589]
[1754372505325,1.50116242,114340.0,114330.0,0.29920589]
[1754372505528,1.50116242,114340.0,114330.0,0.32083589]
[1754372505726,1.50116242,114340.0,114330.0,0.35913589]
[1754372505925,0.5466342,114340.0,114330.0,0.38218589]
[1754372506223,1.02389831,114340.0,114330.0,0.38218589]
[1754372509028,1.02389831,114340.0,114330.0,0.97898589]
[1754372511931,1.02389831,114340.0,114330.0,1.13565756]
[1754372512731,1.02389831,114340.0,114330.0,0.97898589]
[1754372513933,1.02389831,114340.0,114330.0,0.80403699]
[1754372514133,1.02389831,114340.0,114330.0,0.79024699]
[1754372514333,1.50116242,114340.0,114330.0,0.79024699]
[1754372515533,1.50116242,114340.0,114330.0,0.76734699]
[1754372516237,1.50116242,114340.0,114330.0,0.79024699]
[1754372516835,1.50116242,114340.0,114330.0,0.97898589]
[1754372517438,1.02389831,114340.0,114330.0,0.97898589]
[1754372519135,0.4244342,114340.0,114330.0,0.97898589]
[1754372519335,0.4244342,114340.0,114330.0,1.93351411]
[1754372519336,0.2495,114340.0,114330.0,1.93351411]
[1754372519535,0.4244336,114340.0,114330.0,2.40844211]
[1754372519933,0.2495,114340.0,114330.0,1.931178]
[1754372520134,0.2495,114340.0,114330.0,2.56511378]
[1754372520434,0.4244336,114340.0,114330.0,1.61058556]
[1754372520639,0.4244336,114340.0,114330.0,2.03489645]
[1754372520939,0.4244336,114340.0,114330.0,1.73489645]
[1754372521640,0.4244336,114340.0,114330.0,1.13565756]
[1754372522444,0.4244336,114340.0,114330.0,0.97898589]
[1754372522943,0.2495,114340.0,114330.0,0.97898589]
[1754372523238,0.06708,114340.0,114330.0,1.87822478]
[1754372523435,0.06708,114340.0,114330.0,2.14302478]
[1754372524440,0.06708,114340.0,114330.0,2.34736977]
[1754372524840,0.0232,114340.0,114330.0,2.34736977]
[1754372525541,0.0232,114340.0,114330.0,2.14302478]
[1754372526444,0.1981336,114340.0,114330.0,1.82519351]
[1754372526647,0.0232,114340.0,114330.0,1.82519351]
[1754372526833,0.1981336,114340.0,114330.0,1.82519351]
[1754372527746,0.1981336,114340.0,114330.0,1.22839351]
[1754372527948,0.1981336,114340.0,114330.0,1.82503351]
[1754372528647,0.0232,114340.0,114330.0,1.82503351]
[1754372529150,0.1981336,114340.0,114330.0,1.82503351]
[1754372531053,0.2652336,114340.0,114330.0,1.82503351]
[1754372531252,0.2652336,114340.0,114330.0,1.82492599]
[1754372532254,0.3597536,114340.0,114330.0,1.82492599]
[1754372532457,0.3597536,114340.0,114330.0,1.3777151]
[1754372533855,0.3597536,114340.0,114330.0,1.22072589]
[1754372535155,0.78406449,114340.0,114330.0,1.22072589]
[1754372535359,0.3597536,114340.0,114330.0,1.3777151]
[1754372540355,0.78406449,114340.0,114330.0,1.3777151]
[1754372541662,0.78406449,114340.0,114330.0,1.2832251]
[1754372541866,0.78406449,114340.0,114330.0,1.09220071]
[1754372542160,0.78406449,114340.0,114330.0,0.82740071]
[1754372542461,0.96646449,114340.0,114330.0,0.82740071]
[1754372542662,0.96646449,114340.0,114330.0,0.0737715]
[1754372542961,0.96646449,114340.0,114330.0,0.69875188]
[1754372544567,0.96646449,114340.0,114330.0,0.87370068]
[1754372546063,0.5421536,114340.0,114330.0,0.27714068]
[1754372546259,0.5421536,114340.0,114330.0,0.87370068]
[1754372549166,0.4722936,114340.0,114330.0,1.29801157]
[1754372549366,0.4476336,114340.0,114330.0,1.29801157]
[1754372551772,0.4476336,114340.0,114330.0,1.56281157]
[1754372554570,0.4476336,114340.0,114330.0,1.71980078]
[1754372556676,0.5417136,114340.0,114330.0,1.29548989]
[1754372560979,0.5417136,114340.0,114330.0,1.13850068]
[1754372563880,0.5417136,114340.0,114330.0,0.54194068]
[1754372564080,0.96602449,114340.0,114330.0,1.13842068]
[1754372565982,0.96602449,114340.0,114330.0,1.29540989]
[1754372568084,0.96602449,114340.0,114330.0,1.12042109]
[1754372568277,0.96602449,114340.0,114330.0,0.96343188]
[1754372569180,0.96602449,114340.0,114330.0,1.12042109]
[1754372569575,0.96602449,114340.0,114330.0,0.85562109]
[1754372571889,0.5417136,114340.0,114330.0,1.03056999]
[1754372572089,0.4792536,114340.0,114330.0,1.03056999]
[1754372572279,0.5417136,114340.0,114330.0,1.03056999]
[1754372573387,0.96602449,114340.0,114330.0,0.85562109]
[1754372574685,0.96602449,114340.0,114330.0,1.03056999]
[1754372576890,0.5417136,114340.0,114330.0,1.03056999]
[1754372577091,0.96602449,114340.0,114330.0,1.03056999]
[1754372577482,0.5417136,114340.0,114330.0,1.03056999]
[1754372579290,0.4476336,114340.0,114330.0,1.45488088]
[1754372581190,0.4244336,114340.0,114330.0,1.45488088]
[1754372581386,0.4244336,114340.0,114330.0,1.71968088]
[1754372581581,0.4493036,114340.0,114330.0,1.71968088]
[1754372581986,0.4493036,114340.0,114330.0,1.56269167]
[1754372583408,0.4493036,114340.0,114330.0,1.29582434]
[1754372583592,0.4740836,114340.0,114330.0,1.29582434]
[1754372583798,0.5423536,114340.0,114330.0,1.29582434]
[1754372584997,0.5423536,114340.0,114330.0,1.13838078]
[1754372585403,0.96666449,114340.0,114330.0,1.13838078]
[1754372586408,0.5423536,114340.0,114330.0,1.13838078]
[1754372592304,0.5423536,114340.0,114330.0,1.29582434]
[1754372593007,0.96666449,114340.0,114330.0,1.29574434]
[1754372593200,0.5423536,114340.0,114330.0,1.29574434]
[1754372601719,0.5423536,114340.0,114330.0,1.29374434]
[1754372602016,0.5423536,114340.0,114330.0,1.29174434]
[1754372602212,0.5433536,114340.0,114330.0,1.29174434]
[1754372602617,1.02079192,114340.0,114330.0,1.76918266]
[1754372608816,1.02079192,114340.0,114330.0,1.29174434]
[1754372615727,1.02079192,114340.0,114330.0,1.76918266]
[1754372616529,1.02079192,114340.0,114330.0,1.29174394]
[1754372618026,1.02079192,114340.0,114330.0,1.13430038]
[1754372620030,1.02079192,114340.0,114330.0,0.95935188]
[1754372620532,1.02079192,114340.0,114330.0,1.13430038]
[1754372625933,0.5433536,114340.0,114330.0,1.13430038]
[1754372626128,1.02079192,114340.0,114330.0,1.6117387]
[1754372627535,1.02079192,114340.0,114330.0,1.13430038]
[1754372627739,1.02079192,114340.0,114330.0,1.76918226]
[1754372629037,0.92774192,114340.0,114330.0,1.76918226]
[1754372629236,1.00857192,114340.0,114330.0,1.76918226]
[1754372629539,1.02277192,114340.0,114330.0,1.76918226]
[1754372633138,1.02277192,114340.0,114330.0,1.17282226]
[1754372633337,1.02277192,114340.0,114330.0,1.76894226]
[1754372645442,1.02277192,114340.0,114330.0,1.29150394]
[1754372646245,1.02277192,114340.0,114330.0,1.13406038]
[1754372648745,1.02277192,114340.0,114330.0,1.29150394]
[1754372649335,0.5453336,114340.0,114330.0,1.29150394]
[1754372649540,1.02277192,114340.0,114330.0,1.29150394]
[1754372650348,1.02277192,114340.0,114330.0,1.13406038]
[1754372651048,1.02277192,114340.0,114330.0,1.29150394]
[1754372652747,1.02277192,114340.0,114330.0,1.76894226]
[1754372654346,1.02277192,114340.0,114330.0,1.6114987]
[1754372661447,1.02277192,114340.0,114330.0,1.76894226]
[1754372663059,1.02277192,114340.0,114330.0,1.11655544]
[1754372663252,1.02277192,114340.0,114330.0,1.29150394]
[1754372663953,1.02277192,114340.0,114330.0,1.11655544]
[1754372664153,1.02277192,114340.0,114330.0,0.85175544]
[1754372664747,1.02277192,114340.0,114330.0,0.69431188]
[1754372669254,1.02277192,114340.0,114330.0,0.80458116]
[1754372672057,1.02277192,114340.0,114330.0,0.97952946]
[1754372672258,1.02277192,114340.0,114330.0,0.80458116]
[1754372672454,1.02277192,114340.0,114330.0,0.69431188]
[1754372672757,1.02277192,114340.0,114330.0,0.85175544]
[1754372675159,1.02277192,114340.0,114330.0,0.69431188]
[1754372675958,1.02277192,114340.0,114330.0,0.85175544]
[1754372683453,1.02277192,114340.0,114330.0,0.85143544]
[1754372684154,1.02277192,114340.0,114330.0,0.69399188]
[1754372684553,1.52277192,114340.0,114330.0,0.69399188]
[1754372690565,1.52277192,114340.0,114330.0,0.09819188]
[1754372690861,0.1749485,114330.0,114320.0,0.55000621]
[1754372691056,0.1749485,114330.0,114320.0,0.18166154]
[1754372691057,1.25111514,114330.0,114320.0,0.18166154]
[1754372691260,1.84687514,114330.0,114320.0,0.18166154]
[1754372691452,1.15308514,114330.0,114310.0,0.1749788]
[1754372691659,0.2618591,114310.0,114300.0,0.37507801]
[1754372691871,0.77370742,114310.0,114300.0,0.82017361]
[1754372692059,1.25114574,114310.0,114300.0,0.77464361]
[1754372692264,1.25114574,114310.0,114300.0,0.20008361]
[1754372692463,1.25114574,114310.0,114300.0,0.79584361]
[1754372692662,1.50064574,114310.0,114300.0,0.79584361]
[1754372693262,1.50064574,114310.0,114300.0,0.20008361]
[1754372693566,1.50064574,114310.0,114300.0,0.79588361]
[1754372693865,1.02320742,114310.0,114300.0,0.79788361]
[1754372694066,1.02320742,114310.0,114300.0,0.20208361]
[1754372694364,1.02320742,114310.0,114300.0,0.80084361]
[1754372694565,1.02320742,114310.0,114300.0,0.71195899]
[1754372694962,1.02320742,114310.0,114300.0,0.80510926]
[1754372695661,1.00883742,114310.0,114300.0,0.78077926]
[1754372695868,1.02320742,114310.0,114300.0,0.80510926]
[1754372697066,1.02320742,114310.0,114300.0,0.78077926]
[1754372698770,1.50064574,114310.0,114300.0,0.78077926]
[1754372698972,1.02320742,114310.0,114300.0,0.78077926]
[1754372700572,1.02320742,114310.0,114300.0,0.95577416]
[1754372700773,1.02320742,114310.0,114300.0,0.78077926]
[1754372700973,1.02320742,114310.0,114300.0,0.89102287]
[1754372701567,1.02320742,114310.0,114300.0,0.80118287]
[1754372701967,1.02320742,114310.0,114300.0,0.83428287]
[1754372702462,1.02320742,114310.0,114300.0,0.89287287]
[1754372702762,1.02320742,114310.0,114300.0,1.09038767]
[1754372703073,1.02320742,114310.0,114300.0,0.98014406]
[1754372703273,1.02320742,114310.0,114300.0,0.80514926]
[1754372703675,1.02320742,114310.0,114300.0,0.95762416]
[1754372703876,1.02320742,114310.0,114300.0,0.98014416]
[1754372704178,1.02320742,114310.0,114300.0,0.98010416]
[1754372704473,1.02320742,114310.0,114300.0,0.80510926]
[1754372705166,1.02320742,114310.0,114300.0,0.98010416]
[1754372705673,1.02320742,114310.0,114300.0,0.80510926]
[1754372706173,1.02320742,114310.0,114300.0,0.78258926]
[1754372706372,1.02320742,114310.0,114300.0,0.95758406]
[1754372708676,1.02320742,114310.0,114300.0,0.98010406]